Cogmind - Beta 16 @@@ ROGUE MODE // 2025.10.31 @ 00:04:15 Player: alice_fexa Result: Destroyed by BS-ML4(R) with Subdweller Machine Gun Performance ------------- Evolutions (0) 0 Regions Visited (3) 600 Robots Destroyed (36) 180 Value Destroyed (784) 784 Prototype IDs (12) 240 Alien Tech Used (0) 0 Bonus (81) 81 TOTAL SCORE: 1885 Bonus ------- Follower Combat Kills 81 Cogmind --------- Core Integrity 0/250 Matter 275/300 Energy 170/170 System Corruption 0% Temperature Cool (0) Movement Walking (200) Ox1 Location -10/Subcaves Parts ------- > --- POWER (1) -------- Makeshift Power Source > --- PROPULSION (2) --- Cargo Legs > --- UTILITY (2) ------ Improved Heat Sink Huge Storage Unit > --- WEAPON (2) ------- Subdweller Machine Gun Subdweller Machine Gun > --- INVENTORY (25) --- Ion Engine Light Nuclear Core Light Treads Light Treads Light Treads Light Treads Wheel Heat Sink Improved Heat Sink High-capacity Storage Unit High-capacity Matter Pod (200) Structural Scanner Heavy EM Pulse Gun Heavy EM Pulse Gun Heavy EM Pulse Gun Heavy EM Pulse Gun Particle Gun Subdweller Beam Cannon Barrage Gun Heavy Battle Rifle Makeshift Shrapnel Gun Grenade Launcher Rocket Launcher Multitool Scrap Shield Fragment (49) Peak State ------------ > --- POWER ------------ Makeshift Power Source > --- PROPULSION ------- Cargo Legs > --- UTILITY ---------- Improved Heat Sink Huge Storage Unit Scrap Shield > --- WEAPON ----------- Subdweller Machine Gun Subdweller Machine Gun > --- INVENTORY -------- Ion Engine Ion Engine Light Nuclear Core Light Treads Light Treads Light Treads Light Treads Wheel Heat Sink Improved Heat Sink High-capacity Storage Unit High-capacity Matter Pod Structural Scanner Heavy EM Pulse Gun Heavy EM Pulse Gun Heavy EM Pulse Gun Heavy EM Pulse Gun Particle Gun Barrage Gun Heavy Battle Rifle Makeshift Shrapnel Gun Grenade Launcher Rocket Launcher Mining Laser Scrap Shield Fragment [Rating: 36] Favorites ----------- Power Ion Engine Engine Ion Engine Propulsion Light Treads Treads Light Treads Leg Cargo Legs Wheel Wheel Utility Huge Storage Unit Device Improved Heat Sink Storage Huge Storage Unit Protection Scrap Shield Weapon Particle Gun Energy Gun Particle Gun Energy Cannon Subdweller Beam Cannon Ballistic Gun Subdweller Machine Gun Launcher Rocket Launcher Build | -11 -10 -10 -10 ------- Run | Yrd Mat Min Sub Slots Evolved . | . . . . Power . | . . . . Propulsion . | . . . . Utility . | . . . . Weapon . | . . . . Parts Attached 28 | 6 12 3 7 Power 4 | 1 2 . 1 Engine 4 | 1 2 . 1 Core . | . . . . Reactor . | . . . . Propulsion 5 | 2 2 . 1 Treads 2 | 1 1 . . Leg 1 | . . . 1 Wheel 2 | 1 1 . . Hover . | . . . . Flight . | . . . . Utility 8 | 1 5 1 1 Device 4 | . 3 1 . Storage 3 | 1 2 . . Processor . | . . . . Hackware . | . . . . Protection 1 | . . . 1 Artifact . | . . . . Weapon 11 | 2 3 2 4 Energy Gun 5 | 2 2 1 . Energy Cannon 1 | . . . 1 Ballistic Gun 3 | . . . 3 Ballistic Cannon . | . . . . Launcher 2 | . 1 1 . Special Weapon . | . . . . Impact Weapon . | . . . . Slashing Weapon . | . . . . Piercing Weapon . | . . . . Special Melee Weapon . | . . . . Unidentified Prototypes . | . . . . Parts Lost 3 | . 1 . 2 Power 2 | . 1 . 1 Propulsion . | . . . . Utility 1 | . . . 1 Weapon . | . . . . Highest Loss Streak 1 | . 1 . 1 To Critical Strikes . | . . . . Average Backups 22 | 2 20 25 24 Power 3 | . 4 3 2 Propulsion 4 | 1 4 5 5 Utility 4 | . 4 5 5 Weapon 9 | . 7 12 11 Tool/Special . | . . . . Unused Backups 38 | . 12 2 24 Power 12 | . 9 . 3 Propulsion 6 | . . . 6 Utility 4 | . 1 . 3 Weapon 16 | . 2 2 12 Tool/Special . | . . . . Average Slot Usage (%) 93 | . 98 100 82 Engine 13 | . 14 14 11 Treads 10 | . 14 14 4 Leg 2 | . . . 7 Wheel 10 | . 14 14 4 Device 13 | . 13 14 11 Storage 13 | . 14 14 11 Protection 1 | . . . 6 Energy Gun 16 | . 27 17 2 Energy Cannon 1 | . . . 5 Ballistic Gun 5 | . . . 16 Launcher 3 | . . 10 . Peak Build Rating 36 | 6 11 14 36 Average Rating 16 | 5 9 13 27 On Entrance 7 | . 6 11 14 Avg Prop Armor Cover (%) 12 | 14 13 12 12 Naked Turns . | . . . . Heaviest Build 114 | 13 91 93 114 Greatest Support 55 | 20 16 10 55 Greatest Overweight (x) 9 | . 9 9 9 Average Overweight (x) 6 | . 5 9 4 Largest Inventory Capacity 25 | 8 25 25 25 Average Capacity 24 | 7 24 25 25 Most Carried 25 | 4 25 25 25 Average Carried 23 | 2 20 25 24 Final Capacity 25 | 8 25 25 25 Final Carried 25 | 4 25 25 25 Class Distribution -------------------- 55% | Scavenger-Mutant 29% | Mutant 15% | Subdweller-Mutant Dominant Class ---------------- Mutant | -10/Materials Scavenger-Mutant | -10/Mines Subdweller-Mutant | -10/Subcaves Resources | -11 -10 -10 -10 ----------- Run | Yrd Mat Min Sub Matter Collected 1111 | 260 505 180 166 Remotely . | . . . . Salvage Created 1025 | 67 706 34 218 Parts 79 | 3 46 12 18 Haulers Intercepted 2 | . 2 . . Recyclers Shooed . | . . . . Parts Field Recycled . | . . . . Retrieved Matter . | . . . . Parts Self-Destructed . | . . . . Prevented . | . . . . Parts Restored . | . . . . Kills | -11 -10 -10 -10 ------- Run | Yrd Mat Min Sub Combat Hostiles Destroyed 26 | . 13 8 5 Guns 15 | . 12 . 3 Cannons 2 | . . . 2 AOE 9 | . 1 8 . Classes Destroyed 10 | 1 7 . 2 Worker 2 | . 2 . . Builder 1 | . 1 . . Hauler 2 | . 2 . . Recycler 1 | 1 . . . Mechanic 1 | . 1 . . Watcher 3 | . 3 . . Swarmer 11 | . 3 8 . Grunt 10 | . 10 . . Artisan 2 | . . . 2 Subdweller 5 | . . . 5 Best Kill Streak 3 | 1 3 3 1 Combat Bots Only 3 | . 2 3 1 Max Kills in Single Turn 3 | 1 3 2 1 Gunslinging . | . . . . Exploded 2 | . 1 2 . Melee . | . . . . Uniques/NPCs Destroyed . | . . . . Combat | -11 -10 -10 -10 -------- Run | Yrd Mat Min Sub Hostile Shots Fired 115 | . 55 28 32 Missed 33 | . 13 8 12 Hits 82 | . 42 20 20 Projectile 82 | . 42 20 20 AOE 2 | . . . 2 Critical Strikes 2 | . 1 1 . Damage Taken 1265 | . 487 201 577 Core 266 | . 133 60 73 Absorbed by Shields . | . . . . Regen/Repaired (Parts) 116 | . 116 . . Core Remaining (%) 100 | 100 . . . Volleys Fired 112 | 4 62 13 33 Largest 2 | 2 2 2 2 Hottest 115 | 90 115 115 105 Shots Fired 208 | 8 121 16 63 Gun 185 | 8 119 6 52 Cannon 11 | . . . 11 Launcher 12 | . 2 10 . Special . | . . . . Kinetic 49 | . . . 49 Thermal 147 | 8 119 6 14 Explosive 12 | . 2 10 . Electromagnetic . | . . . . Robot Hit Streak 14 | 3 14 3 9 Robot Miss Streak 4 | 1 4 2 3 Penetration Max . | . . . . Secondary Targets 2 | . 1 . 1 Max Gunslinging Chain 1 | . 1 . 1 Shots Hit Robots 128 | 6 76 3 43 Core Hits 58 | 2 37 10 9 Critical Kills . | . . . . Critical Parts Destroyed 1 | . . . 1 Critical Strikes 9 | . 5 2 2 Burn 7 | . 5 2 . Destroy 2 | . . . 2 Melee Attacks . | . . . . Impact . | . . . . Slashing . | . . . . Piercing . | . . . . Sneak Attacks . | . . . . Combat Hostiles . | . . . . Follow-up Attacks . | . . . . Damage Inflicted 2466 | 73 1090 453 850 Guns 1748 | 73 1008 40 627 Cannons 223 | . . . 223 Explosions 495 | . 82 413 . Melee . | . . . . Ramming . | . . . . Kinetic 588 | . . . 588 Thermal 1383 | 73 1008 40 262 Explosive 495 | . 82 413 . Electromagnetic . | . . . . Impact . | . . . . Slashing . | . . . . Piercing . | . . . . Highest Corruption . | . . . . Average Corruption . | . . . . Corruption Purged . | . . . . Corruption Blocked . | . . . . Overload Shots . | . . . . Overflow Damage 32 | . . 32 . Projectiles . | . . . . Explosions 32 | . . 32 . Melee . | . . . . Knockbacks . | . . . . Impact . | . . . . Kinetic . | . . . . Secondary . | . . . . Self-Inflicted Damage 18 | . . 18 . Shots 1 | . . 1 . Rammed . | . . . . Targets Rammed . | . . . . Kicked . | . . . . Crushed . | . . . . Highest Temperature 167 | 70 167 24 . Average Temperature 42 | 34 44 10 . Received Heat Transfer 318 | . 240 6 72 Siege Activations . | . . . . Martial Activations . | . . . . Shielding Activations . | . . . . Robots Disrupted . | . . . . Combat Hostiles . | . . . . Robots Corrupted . | . . . . Combat Hostiles . | . . . . Parts Fried . | . . . . Impact Corruptions . | . . . . Robots Melted . | . . . . Combat Hostiles . | . . . . Parts Melted 8 | . 8 . . Heat Transferred 3927 | 198 3063 259 407 Parts Sabotaged . | . . . . Parts Stolen . | . . . . Parts Stripped . | . . . . Power Chain Reactions . | . . . . Alert | -11 -10 -10 -10 ------- Run | Yrd Mat Min Sub Maximum Alert Level . | . . . . Low Security (%) 100 | 100 100 100 . Level 1 . | . . . . Level 2 . | . . . . Level 3 . | . . . . Level 4 . | . . . . Level 5 . | . . . . High Security . | . . . . Max Security . | . . . . Peak Influence 134 | 5 105 134 . Initial . | . . . . Average 37 | . 38 37 . Influence Increases 877 | 5 457 415 . Destroy 0b10 Robot/C 520 | . 260 260 . Destroy 0b10 Robot/NC 50 | 5 45 . . Destroy Leader 110 | . 70 40 . Allied During Kill 14 | . . 14 . Successful Hack 11 | . 11 . . Disable Machine 45 | . 30 15 . Destroy Structure 67 | . 11 56 . Lose Combat Pursuer 60 | . 30 30 . Influence Decreases 877 | 5 457 415 . Time Decay 846 | 5 447 394 . Lost Part 10 | . 10 . . Lost Ally 21 | . . 21 . Squads Dispatched 3 | . 3 . . Investigation . | . . . . Extermination . | . . . . Reinforcement 3 | . 3 . . Assault . | . . . . Garrison . | . . . . Intercept . | . . . . Searches Triggered . | . . . . Construction Impeded . | . . . . Haulers Reinforced . | . . . . Active Scanning Responses . | . . . . Cargo Convoy Interrupts . | . . . . Stealth | -11 -10 -10 -10 --------- Run | Yrd Mat Min Sub Distress Signals 1 | . 1 . . Communications Jammed . | . . . . Distress Signals . | . . . . Times Spotted 43 | . 21 15 7 Peak Tracking Total 4 | . 4 3 2 Tactical Retreats 3 | . 2 1 . Traps | -11 -10 -10 -10 ------- Run | Yrd Mat Min Sub Traps Triggered 1 | . . . 1 Indirectly . | . . . . Trap Hack Attempts . | . . . . Triggered . | . . . . Disarmed . | . . . . Reprogrammed . | . . . . Reused . | . . . . Traps Extracted . | . . . . Installed . | . . . . Triggered . | . . . . Machines | -11 -10 -10 -10 ---------- Run | Yrd Mat Min Sub Machines Disabled 4 | . 2 1 1 Max in Single Turn 1 | . 1 1 1 Machines Repaired . | . . . . Machines Dismantled . | . . . . Machines Sabotaged . | . . . . Overloaded Fab Kills . | . . . . Hacking | -11 -10 -10 -10 --------- Run | Yrd Mat Min Sub Machines Accessed 10 | . 8 1 1 Terminals 5 | . 5 . . Fabricators . | . . . . Repair Stations 1 | . 1 . . Recycling Units 2 | . 2 . . Scanalyzers . | . . . . Garrison Access . | . . . . Total Hacks 26 | . 24 1 1 Successful 17 | . 15 1 1 Failed 9 | . 9 . . Catastrophic . | . . . . Database Lockouts . | . . . . Manual 11 | . 11 . . Terminals 12 | . 12 . . Fabricators . | . . . . Repair Stations 7 | . 7 . . Recycling Units 5 | . 5 . . Scanalyzers . | . . . . Garrison Access . | . . . . Terminal Hacks 2 | . . 1 1 Open Door 1 | . . 1 . Proto ID Catalog 1 | . . . 1 Fabricator Hacks . | . . . . Repair Station Hacks 6 | . 6 . . Scan Component 3 | . 3 . . Repair 3 | . 3 . . Recycling Unit Hacks 2 | . 2 . . Retrieve Components 2 | . 2 . . Scanalyzer . | . . . . Garrison Access Hacks . | . . . . Unauthorized Hacks 7 | . 7 . . Terminals 7 | . 7 . . Botnet 2 | . 2 . . Skim 5 | . 5 . . Fabricators . | . . . . Repair Stations . | . . . . Recycling Units . | . . . . Scanalyzers . | . . . . Garrison Access . | . . . . Data Cores Recovered . | . . . . Used . | . . . . Hacking Detections 8 | . 8 . . Full Trace Events . | . . . . Feedback Events . | . . . . Feedback Blocked . | . . . . Robot Schematics Acquired . | . . . . Robots Built . | . . . . Authchips . | . . . . Time . | . . . . Total Robot Build Rating . | . . . . Part Schematics Acquired . | . . . . Parts Built . | . . . . Authchips . | . . . . Time . | . . . . Total Part Build Rating . | . . . . Part Studies Acquired . | . . . . Parts Repaired 3 | . 3 . . Time 84 | . 84 . . Parts Recycled . | . . . . Recycled Matter . | . . . . Retrieved Matter . | . . . . Retrieved Components 13 | . 13 . . Parts Scanalyzed . | . . . . Part Schematics Acquired . | . . . . Parts Damaged . | . . . . Bothacking | -11 -10 -10 -10 ------------ Run | Yrd Mat Min Sub Used RIF Installer . | . . . . Robots Hacked . | . . . . Non-combat . | . . . . Combat . | . . . . Robot Hacks Applied . | . . . . Relay Couplers Released . | . . . . Fabnet Peak Effective % . | . . . . Robots Rewired . | . . . . Allies Hacked . | . . . . Hacks Repelled . | . . . . Allies | -11 -10 -10 -10 -------- Run | Yrd Mat Min Sub Total Allies 3 | . . 3 . Largest Group 3 | . . 3 . Highest-Rated Group 40 | . . 40 . Highest-Rated Ally 16 | . . 16 . Total Orders . | . . . . Ally Attacks 33 | . . 33 . Total Damage 275 | . . 275 . Kills 5 | . . 5 . Allies Corrupted . | . . . . Allies Melted . | . . . . Intel | -11 -10 -10 -10 ------- Run | Yrd Mat Min Sub Active Infowar (turns) 43 | . 43 . . Structural 43 | . 43 . . Robot Analysis Total . | . . . . Derelict Logs Recovered 2 | . . 1 1 Drone Launches . | . . . . Drone Recoveries . | . . . . Exploration | -11 -10 -10 -10 ------------- Run | Yrd Mat Min Sub Turns Passed 5122 | 73 1812 1630 1607 Spaces Moved 2137 | 48 760 718 611 Core 3 | 3 . . . Treads 1 | 1 . . . Legs 411 | . . . 411 Wheels 1722 | 44 760 718 200 Hover . | . . . . Flight . | . . . . Fastest Speed 50 | 50 100 215 200 Average Speed 207 | 98 182 215 236 Slowest Speed 270 | 160 215 215 270 Overloaded Moves . | . . . . Propulsion Burnouts . | . . . . Robots Hopped . | . . . . Potential Cave-ins . | . . . . Cave-ins Triggered . | . . . . Exploration Rate (%) 59 | 4 98 97 38 Regions Visited 3 Branch Regions 2 Pre-discovered Areas 3 | . 2 1 . Known Exits Taken 1 | . 1 . . Unknown Exits Taken 2 | 1 . 1 . Scrap Searched 5 | . . 1 4 Spaces Dug 8 | . . 8 . Terrain Destroyed 84 | . 6 78 . Melee . | . . . . Projectile . | . . . . AOE 84 | . 6 78 . Terrain Rammed . | . . . . Walls Destroyed . | . . . . Machines Disabled . | . . . . Actions | -11 -10 -10 -10 --------- Run | Yrd Mat Min Sub Total 2646 | 62 1073 794 717 Wait 271 | 1 179 53 38 Move 2134 | 47 759 717 611 Hop . | . . . . Pick Up 49 | 4 33 3 9 Fast Attach 20 | 6 7 1 6 Attach 1 | . 1 . . Detach 2 | . 2 . . Swap 15 | . 10 2 3 Drop 41 | . 20 5 16 Fire 112 | 4 62 13 33 Melee . | . . . . Ram . | . . . . Kick . | . . . . Crush . | . . . . Escape Stasis . | . . . . Rewire . | . . . . Trap . | . . . . Miscellaneous 1 | . . . 1 Route ------- -11/Scrapyard -10/Materials (discovered 6 exits: *Mat x3 / *Min x2 / *Sub) -10/Mines (discovered 3 exits: *Mat x2 / *Sub) -10/Subcaves (discovered 2 exits: Mat x2) History --------- Turn | Location | Event 13 | -11/Scrapyard | Discovered new exit (range 16) 74 | -11/Scrapyard | Entered Materials 252 | -10/Materials | Discovered new exit (range 8) 307 | -10/Materials | Build established: Mutant 678 | -10/Materials | Discovered new exit (range 8) 867 | -10/Materials | Discovered new exit (range 6) 1062 | -10/Materials | Discovered new exit (range 16) 1177 | -10/Materials | Discovered new exit (range 16) 1314 | -10/Materials | Core integrity fell below 50% 1460 | -10/Materials | Build established: Scavenger-Mutant 1472 | -10/Materials | Learned 4 Subcaves zone layouts 1511 | -10/Materials | Identified exit to Mines 1534 | -10/Materials | Repaired Particle Gun 1538 | -10/Materials | Learned 2 Storage zone layouts 1557 | -10/Materials | Loaded intel: 11 interactive machine locations 1562 | -10/Materials | Repaired Med. Laser 1564 | -10/Materials | Learned location of 2 exits from Mines 1565 | -10/Materials | Learned 4 Subcaves zone layouts 1567 | -10/Materials | Learned location of Mines (-9) 1589 | -10/Materials | Repaired Heat Sink 1589 | -10/Materials | Loaded intel: 13 trap records 1615 | -10/Materials | Learned location of Storage (-8) 1886 | -10/Materials | Entered Mines 1887 | -10/Mines | Identified exit to Materials 1893 | -10/Mines | Received a Rocket Launcher from a helpful Derelict 1915 | -10/Mines | Assisted by bots powering up and referring to "LRC-V3" 2021 | -10/Mines | Found a hidden stash of uninstalled traps 2603 | -10/Mines | Discovered new exit (range 9) 2607 | -10/Mines | Learned location of Zion (-6) 2653 | -10/Mines | Found the Drone Emporium 3516 | -10/Mines | Entered Subcaves 3517 | -10/Subcaves | Approached by a straggling Scientist 3517 | -10/Subcaves | Identified exit to Materials 3593 | -10/Subcaves | Learned Materials machine intel 3783 | -10/Subcaves | Core integrity fell below 20% 3990 | -10/Subcaves | Visited 4L-MR0's lab 4015 | -10/Subcaves | Found Cargo Legs 4017 | -10/Subcaves | Attached Cargo Legs, gained temporary slots: Utility x2 4312 | -10/Subcaves | Build established: Mutant 4543 | -10/Subcaves | Shifting Twisted Machinery released Mak. Power Source 4545 | -10/Subcaves | Shifting Twisted Machinery released Sub. Beam Cannon 4644 | -10/Subcaves | Build established: Subdweller-Mutant 5039 | -10/Subcaves | Shifting Twisted Machinery released Lgt. Humpback 5123 | -10/Subcaves | Destroyed by BS-ML4(R) with Subdweller Machine Gun Last Messages --------------- 04559_ Acquired Mak. Power Source. 04585_ Dropped Ion Engine. 04586_ Acquired Sub. Beam Cannon. 04608_ Triggered Piercing Trap. 04608_ Spikes shoot up from the floor. 04608_ Critical hit (Impale). 04659_ Acquired 14 matter. 04678_ Searching scrap... 04678_ Found Mak. Light Armor Plating. 04678_ Found 32 Matter. 04679_ Acquired 32 matter. Lgt. Humpback falls loose from the Twisted Machinery. 05054_ OT-O1B(u) cries out in pain. 05054_ OT-O1B(u) destroyed. 05065_ Dropped Mining Laser. 05066_ Acquired Multitool. 05112_ Scrap Shield destroyed. 05113_ Temporary Utility slot lost. 05116_ Q0-E44(R) destroyed. 05116_ Switching to secondary target: 0D-I0X(R). Map ----- +----------------------------------------------------+ | ???????????????????## ##""" ##??? | | ????????????????????## ## #?# ###???? | | ?????????????????????##### #? #?????? | | ???????????????????????## ###### #?????? | | ??????????????????????## # # ## ##?????? | | ??????????????????????# ####### #??????? | | ??????????????????????## " #?????#" #??????? | | ???????????????????????## #"# #??????####??????? | | ?????????????????????#######" ##????????????????? | | ?????????????????????# ## ####?????????????? | | ?????????????????????#" "## ####"##""?????? | | ?????????????????????# # *% """""????? | | ?????????????????????#" | # | | ????????????????# # "$ # "!#### | | ?????????????????# & " "###????? ?? | | ???????????????????### # ##??????????### ?? | | ?????????????????????###?# ###????????????????? | | #####????# # ## ### ##???## ???????????? | | ## ####?# ####### ## #???# ???????????? | | #### #???## ###### ???????????? | | ###??# ;;;;### ???????????? | | ### #?## ;;## ???????????? | | #?## ### ;;##???????????? | | #??# & ## ;#????????????? | | ##??# ##!% R ;#?????????????? | | #???# #####& @ ;;;;#?????????????? | | ##??## ###?# ;; #??????????????? | | #???# #### ###??????????????? | | #???## #?## #??????????????? | | ##???# ##?# ; #??????????????? | | ##??# ## ### # # #??????????????? | | #### ### ## #### #??????????????? | | ####?## ########?# #??????????????? | | ##????##### ##????????## ##??????????????? | | #????????####??????????# ##???????????????? | | #######????????????????## #???????????????? | | ## ##???????????????# ##???????????????? | | # #???????????????# #????????????????? | | #???????????????## ######???????????? | | #??############## < ## ???????????? | | # #### ## ## ## # " ???????????? | | ## #### ## """ """""???????????? | | #####??## ????????????????????????????????????? | | ??????### ????????????????????????????????????? | | ?????## ????????????????????????????????????? | | ????## ????????????????????????????????????? | | ???## #????????????????????????????????????? | | ???# #????????????????????????????????????? | | ?### #????????????????????????????????????? | | ## ????????????????????????????????????? | +----------------------------------------------------+ Best States ------------- Heat Dissipation 39 Energy Generation 15 Energy Capacity 250 Matter Stores 300 Matter Capacity 300 Sight Range 16 Terrain Scan Density 10 Armor Coverage 800 Evasion (%) 40 Recoil Reduction 1 Item Schematics ----------------- None Robot Schematics ------------------ None Fabricated ------------ Nothing Repaired ---------- Particle Gun | 37% | -10/Materials Med. Laser | 40% | -10/Materials Heat Sink | 10% | -10/Materials Studied --------- None Alien Tech Used ----------------- None Achievements -------------- None Challenges ------------ None Game ------ Seed GhostThermalCannon Manual? 0 Play Time 00:15:09 Cumulative 1594.1 hours Start 2025.10.30 @ 23:49:52 End 2025.10.31 @ 00:04:15 Sessions 1 Manual Loads 0 Difficulty Rogue Special Mode None Game No. 1134 Rogue 1094 Adventurer 40 Explorer 0 Win Type - Total 203 Types 88/11/74/2/2/4/16/2/1/3 Lore% 97 Gallery% 97 Achievement% 78 Wizard Run 0 Options --------- Layout 0 ASCII 0 Keyboard 0 Movement Numpad Keybinds 0 Fullscreen 0 Font 20/Terminus Map View 76x50 Zoom Use 0% Tactical HUD 1 Map Filters NONE Filters NONE Steam 1 RUN: 511c91cf-0b48-4500-9505-66b354e06ff4